Cogmind - Beta 9.6 @@@ ROGUE MODE // 2020.08.16 @ 17:31:11 Player: Rusllan Result: Destroyed by S-10 Pest with Light Assault Rifle Performance ------------- Evolutions (1) 500 Regions Visited (2) 400 Robots Destroyed (58) 290 Value Destroyed (878) 878 Prototype IDs (0) 0 Alien Tech Used (0) 0 Bonus (0) 0 TOTAL SCORE: 2068 Bonus ------- None Cogmind --------- Core Integrity 0/400 Matter 295/300 Energy 399/400 System Corruption 0% Temperature Cool (0) Movement Core (600) Ox11 Location -9/Materials Parts ------- > --- POWER (1) -------- (None) > --- PROPULSION (2) --- (None) > --- UTILITY (4) ------ High-capacity Storage Unit Large Battery > --- WEAPON (2) ------- (None) > --- INVENTORY (12) --- Heat Sink Heat Sink Large Battery (300) Peak State ------------ > --- POWER ------------ Improved Ion Engine > --- PROPULSION ------- Light Treads Light Treads > --- UTILITY ---------- Heat Sink High-capacity Storage Unit Large Battery Light Armor Plating > --- WEAPON ----------- Small Laser Beam Rifle > --- INVENTORY -------- Light Treads Heat Sink Heat Sink Large Battery Mining Laser Mining Laser [Rating: 11] Favorites ----------- Power Ion Engine Engine Ion Engine Propulsion Light Treads Treads Light Treads Leg Aluminum Leg Utility Heat Sink Device Heat Sink Storage High-capacity Storage Unit Processor Targeting Computer Protection Light Armor Plating Weapon Small Laser Energy Gun Small Laser Ballistic Gun Assault Rifle Ballistic Cannon Light Cannon Special Weapon Mining Laser Build | -11 -10 -9 ------- Run | Scr Mat Mat Slots Evolved 2 | . . 2 Power . | . . . Propulsion . | . . . Utility 2 | . . 2 Weapon . | . . . Parts Attached 39 | 8 9 22 Power 4 | 2 . 2 Engine 4 | 2 . 2 Core . | . . . Reactor . | . . . Propulsion 7 | 3 1 3 Treads 6 | 2 1 3 Leg 1 | 1 . . Wheel . | . . . Hover . | . . . Flight . | . . . Utility 13 | 1 4 8 Device 3 | . 1 2 Storage 6 | 1 3 2 Processor 1 | . . 1 Hackware . | . . . Protection 3 | . . 3 Artifact . | . . . Weapon 15 | 2 4 9 Energy Gun 10 | 1 3 6 Energy Cannon . | . . . Ballistic Gun 1 | 1 . . Ballistic Cannon 1 | . 1 . Launcher . | . . . Special Weapon 3 | . . 3 Impact Weapon . | . . . Slashing Weapon . | . . . Piercing Weapon . | . . . Special Melee Weapon . | . . . Unidentified Prototypes . | . . . Parts Lost 23 | . 1 22 Power 3 | . . 3 Propulsion 5 | . . 5 Utility 5 | . . 5 Weapon 10 | . 1 9 Highest Loss Streak 10 | . 1 10 Average Slot Usage (%) 93 | . 95 90 Engine 12 | . 14 8 Treads 24 | . 28 18 Device 11 | . 11 10 Storage 17 | . 14 22 Protection 3 | . . 9 Energy Gun 19 | . 19 18 Ballistic Gun 1 | . 2 . Ballistic Cannon 2 | . 4 . Naked Turns . | . . . Heaviest Build 49 | 12 41 49 Greatest Support 40 | 40 40 40 Greatest Overweight (x) 13 | . 1 13 Average Overweight (x) . | . . 1 Largest Inventory Capacity 12 | 6 12 12 Average Capacity 10 | 5 9 12 Most Carried 10 | 2 10 8 Average Carried 4 | . 5 4 Final Capacity 12 | 6 12 12 Final Carried 7 | 1 7 3 Class Distribution -------------------- 69% | Mutant 30% | Scavenger-Mutant Dominant Class ---------------- Mutant | -10/Materials Scavenger-Mutant | -9/Materials Resources | -11 -10 -9 ----------- Run | Scr Mat Mat Matter Collected 758 | 274 329 155 Remotely . | . . . Salvage Created 1782 | . 897 885 Parts 138 | . 64 74 Haulers Intercepted 2 | . 1 1 Recyclers Shooed 6 | . 3 3 Parts Field Recycled . | . . . Retrieved Matter . | . . . Parts Self-Destructed . | . . . Prevented . | . . . Kills | -11 -10 -9 ------- Run | Scr Mat Mat Combat Hostiles Destroyed 23 | . 7 16 Guns 22 | . 7 15 AOE 1 | . . 1 Classes Destroyed 10 | . 8 2 Worker 11 | . 6 5 Builder 11 | . 5 6 Tunneler 2 | . 2 . Hauler 2 | . 1 1 Recycler 3 | . 3 . Mechanic 1 | . 1 . Watcher 5 | . 3 2 Swarmer 7 | . . 7 Grunt 13 | . 7 6 Sentry 3 | . . 3 Best Kill Streak 7 | . 7 5 Combat Bots Only 4 | . 4 4 Max Kills in Single Turn 2 | . 2 1 Gunslinging . | . . . Exploded 1 | . . 1 Melee . | . . . Uniques/NPCs Destroyed . | . . . Combat | -11 -10 -9 -------- Run | Scr Mat Mat Damage Taken 2277 | . 332 1945 Core 448 | . 46 402 Absorbed by Shields . | . . . Core Remaining (%) 90 | 100 81 . Volleys Fired 217 | . 100 117 Largest 2 | . 2 2 Hottest 100 | . 80 100 Shots Fired 396 | . 185 211 Gun 365 | . 156 209 Cannon 29 | . 29 . Launcher . | . . . Special 2 | . . 2 Kinetic 68 | . 68 . Thermal 233 | . 91 142 Explosive . | . . . Electromagnetic 95 | . 26 69 Robot Hit Streak 10 | . 10 8 Robot Miss Streak 5 | . 5 5 Penetration Max . | . . . Secondary Targets 3 | . 1 2 Max Gunslinging Chain 1 | . 1 1 Shots Hit Robots 253 | . 118 135 Core Hits 84 | . 41 43 Critical Hits . | . . . Critical Kills . | . . . Critical Parts Destroyed . | . . . Melee Attacks . | . . . Impact . | . . . Slashing . | . . . Piercing . | . . . Sneak Attacks . | . . . Combat Hostiles . | . . . Follow-up Attacks . | . . . Damage Inflicted 3273 | . 1389 1884 Guns 2742 | . 1047 1695 Cannons 276 | . 276 . Explosions 231 | . 66 165 Melee . | . . . Ramming . | . . . Kinetic 494 | . 494 . Thermal 1861 | . 663 1198 Explosive . | . . . Electromagnetic 918 | . 232 686 Impact . | . . . Slashing . | . . . Piercing . | . . . Highest Corruption 1 | . 1 . Average Corruption 1 | . 1 . Corruption Purged . | . . . Effects 7 | . 7 . Message Errors 1 | . 1 . Energy Discharges 1 | . 1 . Data Loss (minor) 2 | . 2 . Targeting Errors 3 | . 3 . Overload Shots . | . . . Overflow Damage 36 | . 26 10 Projectiles 18 | . 14 4 Explosions 18 | . 12 6 Melee . | . . . Knockbacks 3 | . 3 . Impact . | . . . Kinetic 3 | . 3 . Secondary . | . . . Self-Inflicted Damage 74 | . . 74 Shots 2 | . . 2 Rammed . | . . . Targets Rammed . | . . . Kicked . | . . . Crushed . | . . . Highest Temperature 78 | . 78 60 Average Temperature 25 | . 33 18 Received Heat Transfer 624 | . 186 438 Siege Activations . | . . . Robots Corrupted . | . . . Combat Hostiles . | . . . Parts Fried 1 | . . 1 Impact Corruptions . | . . . Robots Melted 1 | . . 1 Combat Hostiles . | . . . Parts Melted 5 | . 1 4 Heat Transferred 4040 | . 1425 2615 Parts Sabotaged . | . . . Parts Stolen . | . . . Parts Stripped . | . . . Power Chain Reactions 5 | . 1 4 Missiles Intercepted . | . . . Alert | -11 -10 -9 ------- Run | Scr Mat Mat Peak Influence 227 | . 214 227 Average Influence 84 | . 83 93 Maximum Alert Level 1 | . 1 1 Low Security (%) 95 | 100 95 96 Level 1 4 | . 4 3 Level 2 . | . . . Level 3 . | . . . Level 4 . | . . . Level 5 . | . . . High Security . | . . . Max Security . | . . . Squads Dispatched 5 | . 4 1 Investigation 5 | . 4 1 Extermination . | . . . Reinforcement . | . . . Assault . | . . . Garrison . | . . . Intercept . | . . . Construction Impeded . | . . . Haulers Reinforced . | . . . Stealth | -11 -10 -9 --------- Run | Scr Mat Mat Distress Signals 2 | . 1 1 Communications Jammed . | . . . Distress Signals . | . . . Times Spotted 50 | . 16 34 Peak Tracking Total 7 | . 4 7 Tactical Retreats 3 | . . 3 Traps | -11 -10 -9 ------- Run | Scr Mat Mat Traps Triggered 1 | . 1 . Indirectly . | . . . Trap Hack Attempts . | . . . Triggered . | . . . Disarmed . | . . . Reprogrammed 3 | . 3 . Reused . | . . . Traps Extracted . | . . . Installed . | . . . Triggered . | . . . Machines | -11 -10 -9 ---------- Run | Scr Mat Mat Machines Disabled 1 | . 1 . Max in Single Turn 1 | . 1 . Machines Sabotaged . | . . . Garrisons Compromised . | . . . Overloaded Fab Kills . | . . . Fab Network Shutdowns . | . . . Hacking | -11 -10 -9 --------- Run | Scr Mat Mat Machines Accessed 6 | . 5 1 Terminals 5 | . 4 1 Fabricators . | . . . Repair Stations . | . . . Recycling Units 1 | . 1 . Scanalyzers . | . . . Garrison Access . | . . . Total Hacks 21 | . 17 4 Successful 9 | . 8 1 Failed 12 | . 9 3 Catastrophic 2 | . 2 . Database Lockouts . | . . . Manual . | . . . Terminals 19 | . 15 4 Fabricators . | . . . Repair Stations . | . . . Recycling Units 2 | . 2 . Scanalyzers . | . . . Garrison Access . | . . . Terminal Hacks 7 | . 6 1 Record 2 | . 1 1 Locate Traps 2 | . 2 . Reprogram Traps 1 | . 1 . Investigation Status 1 | . 1 . Zone Layout 1 | . 1 . Fabricator Hacks . | . . . Repair Station Hacks . | . . . Recycling Unit Hacks 2 | . 2 . Report Inventory 1 | . 1 . Retrieve Components 1 | . 1 . Scanalyzer . | . . . Garrison Access Hacks . | . . . Unauthorized Hacks . | . . . Terminals . | . . . Fabricators . | . . . Repair Stations . | . . . Recycling Units . | . . . Scanalyzers . | . . . Garrison Access . | . . . Data Cores Recovered . | . . . Used . | . . . Hacking Detections 5 | . 4 1 Full Trace Events 5 | . 4 1 Feedback Events . | . . . Feedback Blocked . | . . . Robot Schematics Acquired . | . . . Robots Built . | . . . Matter . | . . . Time . | . . . Total Robot Build Rating . | . . . Part Schematics Acquired . | . . . Parts Built . | . . . Matter . | . . . Time . | . . . Total Part Build Rating . | . . . Parts Repaired . | . . . Time . | . . . Parts Recycled . | . . . Recycled Matter . | . . . Retrieved Matter . | . . . Retrieved Components 10 | . 10 . Parts Scanalyzed . | . . . Part Schematics Acquired . | . . . Parts Damaged . | . . . Bothacking | -11 -10 -9 ------------ Run | Scr Mat Mat Used RIF Installer . | . . . Robots Hacked . | . . . Non-combat . | . . . Combat . | . . . Robot Hacks Applied . | . . . Relay Couplers Released . | . . . Robots Rewired . | . . . Allies Hacked . | . . . Hacks Repelled . | . . . Allies | -11 -10 -9 -------- Run | Scr Mat Mat Total Allies . | . . . Largest Group . | . . . Highest-Rated Group . | . . . Highest-Rated Ally . | . . . Total Orders . | . . . Ally Attacks . | . . . Total Damage . | . . . Kills . | . . . Allies Corrupted . | . . . Allies Melted . | . . . Intel | -11 -10 -9 ------- Run | Scr Mat Mat Robot Analysis Total . | . . . Derelict Logs Recovered . | . . . Drone Launches . | . . . Drone Recoveries . | . . . Exploration | -11 -10 -9 ------------- Run | Scr Mat Mat Turns Passed 2041 | 65 1220 756 Spaces Moved 779 | 36 537 206 Core 10 | 7 . 3 Treads 767 | 27 537 203 Legs 2 | 2 . . Wheels . | . . . Hover . | . . . Flight . | . . . Fastest Speed 50 | 50 160 180 Average Speed 171 | 136 166 188 Slowest Speed 700 | 160 180 700 Overloaded Moves . | . . . Propulsion Burnouts . | . . . Robots Hopped . | . . . Cave-ins Triggered . | . . . Exploration Rate (%) 32 | 3 74 19 Regions Visited 2 Branch Regions . Pre-discovered Areas . | . . . Known Exits Taken . | . . . Unknown Exits Taken 2 | 1 1 . Scrap Searched . | . . . Spaces Dug . | . . . Terrain Destroyed 19 | . 2 17 Melee . | . . . Projectile . | . . . AOE 19 | . 2 17 Actions | -11 -10 -9 --------- Run | Scr Mat Mat Total 1094 | 52 680 362 Wait . | . . . Move 777 | 35 536 206 Hop . | . . . Pick Up 45 | 8 21 16 Fast Attach . | . . . Attach 28 | 7 3 18 Detach . | . . . Swap 11 | 1 6 4 Drop 16 | 1 14 1 Fire 217 | . 100 117 Melee . | . . . Ram . | . . . Kick . | . . . Crush . | . . . Escape Stasis . | . . . Rewire . | . . . Trap . | . . . Miscellaneous . | . . . Route ------- -11/Scrapyard -10/Materials (discovered 4 exits: *Mat x3 / [*Min]) -9/Materials (discovered 1 exit: [*Min]) History --------- Turn | Location | Event 2 | -11/Scrapyard | Met Revision 17 11 | -11/Scrapyard | Discovered new exit (range 15) 66 | -11/Scrapyard | Entered Materials 209 | -10/Materials | Discovered new exit (range 15) 320 | -10/Materials | Build established: Mutant 578 | -10/Materials | Discovered new exit (range 11) 756 | -10/Materials | Discovered new exit (range 7) 1153 | -10/Materials | Discovered new exit (range 14) 1286 | -10/Materials | Entered another Materials area 1286 | -9/Materials | Evolved 2 slots: Utility x2 1410 | -9/Materials | Lost 5 parts (1p1n1u2w) 1704 | -9/Materials | Build established: Scavenger-Mutant 1818 | -9/Materials | Discovered new exit (range 11) 2014 | -9/Materials | Core integrity fell below 50% 2037 | -9/Materials | Core integrity fell below 20% 2042 | -9/Materials | Destroyed by S-10 Pest with Light Assault Rifle Last Messages --------------- K-01 Serf collects debris. S-10 Pest destroyed. R-06 Scavenger collects Lgt. Assault Rifle. K-01 Serf collects debris. U-05 Engineer lays Concrete. K-01 Serf collects debris. R-06 Scavenger collects Flight Unit. K-01 Serf collects debris. Mining Laser destroyed. R-06 Scavenger collects Lgt. Assault Rifle. K-01 Serf collects debris. Mining Laser destroyed. Lgt. Treads destroyed. K-01 Serf collects debris. U-05 Engineer lays Concrete. K-01 Serf collects debris. Ion Engine destroyed. K-01 Serf collects debris. K-01 Serf destroyed. K-01 Serf collects debris. Map ----- +----------------------------------------------------+ | ??????????????????????"" #???????# #?????????# | | ???????????????????????" #???????# #?????????# | | ???????????????????????" #???????# #?????????# | | ??????????????????????? #???????# #?????????# | | ??????????????????????? #???????# = #?????????### | | ????????????????####?###+###?????# % ###+#???????? | | ????????????????? # ####### ### ######### | | ?????????????????? # % *% !!######## | | ???????????????????? + % %!%!=%==%%! | | ?????????????????????# =!=######## | | ?????????????????????# #######+############### | | ?????????????????????## ##???? ?????????????? | | ??????????????????????# %#???? ?????????????? | | ??????????????????????# [ #??? ?????????????? | | ??????????????????????# #??# """ "?????????????? | | ?????????????????????## #### """ "?????????????? | | ?????????????????????# w "# """ "?????????????? | | ?????????????????????# ""#??? ??????????????? | | ?????????????????????# ||#??? ??????????????? | | ?????????????????????# <%!""#???##??????????????? | | ?????????????????????# % =||#???????????????????? | | ?????????????????????# = ""#???????????????????? | | ?????????????????????# % "#???????????????????? | | ?????????????????????## ####???????????????????? | | ??????????????????????# %#??????????????????????? | | ??????????????????????# %@#??????????????????????? | | ??????????????????????# #??????????????????????? | | ?????????????????????## ss##?????????????????????? | | ?????????????????????# = #?????????????????????? | | ?????????????????????# usk=! ??????????????????? | | ?????????????????????+ s=%* ??????????????? | | ?????????????????????#"" !""" ??????????? | | ?????????????????????#"T% s""" ########?????????? | | ?????????????????????#""% =""" #????????????????? | | ?????????????????????# %== +????????????????? | | ?????????????????????# ? #????????????????? | | ?????????????????????# ???????????????????? | | ?????????????????????# ###???????????????????? | | ?????????????????????# #?????????????????????? | | ????????????????????? #?????????????????????? | | ????????????????????? #?????????????????????? | | ????????????????????? ?????????????????????? | | ????????????????????? ###/#??????????????????????? | | ?????????????????????????????????????????????????? | | ?????????????????????????????????????????????????? | | ?????????????????????????????????????????????????? | | ?????????????????????????????????????????????????? | | ?????????????????????????????????????????????????? | | ?????????????????????????????????????????????????? | | ?????????????????????????????????????????????????? | +----------------------------------------------------+ Best States ------------- Heat Dissipation 38 Energy Generation 12 Energy Capacity 565 Matter Stores 300 Matter Capacity 300 Sight Range 16 Terrain Scan Density 10 Armor Coverage 150 Evasion (%) 40 Targeting Accuracy 5 Recoil Reduction 2 Item Schematics ----------------- None Robot Schematics ------------------ None Fabricated ------------ Nothing Alien Tech Used ----------------- None Achievements -------------- It's Just You Challenges ------------ None Game ------ Seed BoreSurgeChronowheel Manual? 0 Play Time 00:32:08 Cumulative 6.2 hours Start 2020.08.16 @ 17:00:39 End 2020.08.16 @ 17:31:11 Sessions 1 Manual Loads 0 Difficulty Rogue Special Mode None Game No. 7 Rogue 7 Adventurer 0 Explorer 0 Win Type - Total 0 Types 0/0/0/0/0/0/0 Lore% 4 Gallery% 9 Achievement% 12 Wizard Run 0 Options --------- ASCII 0 Keyboard 0 Movement Mouse Keybinds 0 Fullscreen 1 Font 18/SmallcapsGlow Map View 76x50 Tactical HUD 0 Map Filters NONE Filters NONE Steam 1 RUN: 35e39b6a-6687-4665-8f29-1669d82f8b15